bitfinex/quotes_ETHUSD_20241003
["timestamp","ask_amount","ask_price","bid_price","bid_amount"]
[1727966219148,5.10551,2339.8,2339.3,4.27463]
[1727966219299,4.2741,2339.7,2339.3,4.27463]
[1727966220134,0.8315,2339.8,2339.3,4.27475]
[1727966220340,0.8315,2339.8,2338.8,8.04868]
[1727966220341,4.27451,2339.5,2338.8,0.773]
[1727966220494,4.27451,2339.5,2339.0,4.27517]
[1727966220698,4.27451,2339.5,2338.8,0.773]
[1727966220699,12.45537,2339.8,2339.2,4.27483]
[1727966220902,8.1815,2339.8,2339.5,4.27441]
[1727966221133,0.8315,2339.8,2339.5,4.27441]
[1727966221403,0.8187,2340.4,2339.9,4.27359]
[1727966221639,7.35,2340.6,2340.3,4.27295]
[1727966221940,4.27205,2340.8,2339.8,5.06825]
[1727966221941,0.8187,2340.8,2339.8,5.06825]
[1727966222143,4.27224,2340.7,2339.9,3.0]
[1727966222298,0.8187,2340.1,2339.8,4.27376]
[1727966222499,0.8187,2340.1,2339.8,4.27374]
[1727966222739,4.27131,2341.2,2339.8,4.27374]
[1727966222740,0.8187,2340.4,2340.0,4.27342]
[1727966222939,4.27341,2340.1,2339.7,4.27397]
[1727966223141,4.2735,2340.0,2339.7,3.0]
[1727966223349,4.27368,2339.9,2339.3,4.27463]
[1727966223548,4.27347,2340.1,2339.6,4.27418]
[1727966223761,4.27417,2339.7,2339.2,0.8215]
[1727966224047,4.27442,2339.5,2339.0,4.2752]
[1727966224248,4.27442,2339.5,2338.6,4.27594]
[1727966224249,5.07872,2339.1,2338.6,4.38470084]
[1727966224509,0.8035,2339.4,2339.1,4.27512]
[1727966224665,0.8035,2339.4,2339.0,4.27531]
[1727966224953,0.8035,2339.4,2338.9,4.27549]
[1727966224954,4.27484,2339.3,2338.9,4.27549]
[1727966225162,4.27498,2339.2,2338.7,4.27575]
[1727966225367,4.27541,2339.0,2338.5,4.2761]
[1727966225666,4.27541,2339.0,2338.5,4.27624]
[1727966225667,0.7937,2338.9,2338.5,4.27624]
[1727966225864,4.27571,2338.8,2338.3,4.27649]
[1727966226066,4.27591,2338.7,2338.1,4.27683]
[1727966226219,4.27633,2338.5,2338.0,4.2771]
[1727966226560,4.27624,2338.5,2338.0,4.27705]
[1727966226710,0.7937,2338.9,2337.5,0.9308112]
[1727966226711,4.27583,2338.8,2337.5,0.9308112]
[1727966226915,0.7937,2338.9,2337.5,0.9308112]
[1727966226916,4.27618,2338.6,2338.0,4.27705]
[1727966227130,0.8297,2338.3,2337.9,4.27733]
[1727966227329,0.8297,2338.3,2337.7,8.55516]
[1727966227556,0.8297,2338.3,2337.8,4.27735]
[1727966227852,0.8297,2338.3,2337.7,4.27767]
[1727966227853,5.10633,2338.3,2337.7,4.27758]
[1727966228062,5.10633,2338.3,2337.5,0.8929604]
[1727966228063,0.8297,2338.3,2337.5,0.8929604]
[1727966228281,5.09967,2338.6,2338.0,4.27701]
[1727966228474,0.8236,2338.6,2337.9,4.27733]
[1727966228684,5.09979,2338.6,2338.1,4.27696]
[1727966228843,5.09979,2338.6,2338.0,4.27709]
[1727966229029,0.8236,2338.6,2337.9,0.7513]
[1727966229235,4.27571,2338.8,2338.4,4.27634]
[1727966229433,4.27616,2338.6,2338.1,4.27695]
[1727966229665,0.8236,2338.9,2338.1,4.27695]
[1727966229666,4.27577,2338.8,2338.3,4.27659]
[1727966229852,4.27588,2338.7,2338.3,4.27659]
[1727966230167,0.8236,2338.9,2338.5,4.27614]
[1727966230670,0.8236,2338.9,2338.5,4.27611]
[1727966230877,0.8236,2338.9,2338.6,4.27596]
[1727966231176,0.8236,2338.9,2338.1,1.34070239]
[1727966231177,0.8236,2338.9,2338.5,4.27615]
[1727966231329,0.8236,2338.9,2338.7,4.27571]
[1727966231528,4.27523,2339.1,2338.6,4.27603]
[1727966231927,0.8311,2339.2,2338.9,4.27551]
[1727966232131,0.8311,2339.2,2338.5,1.7066604]
[1727966232376,0.8311,2339.2,2338.8,4.27568]
[1727966232558,5.10618,2339.2,2338.7,4.27576]
[1727966232759,4.27427,2339.6,2338.5,4.7066604]
[1727966232760,0.7508,2339.6,2338.5,4.7066604]
[1727966233073,5.02458,2339.9,2339.5,4.2744]
[1727966233284,4.27416,2339.7,2339.2,4.27488]
[1727966233572,4.27451,2339.5,2339.1,7.27511]
[1727966233876,0.7508,2339.8,2338.9,3.8929604]
[1727966234172,4.27425,2339.6,2339.1,4.27507]
[1727966234576,5.204223,2339.6,2339.1,0.8929604]
[1727966234794,5.204223,2339.6,2339.2,0.8929604]
[1727966234795,4.27487,2339.3,2339.2,0.8929604]
[1727966235069,5.0248,2339.8,2339.1,0.8927986]
[1727966235282,4.27459,2339.5,2339.1,0.8927986]
[1727966235465,4.2749,2339.3,2339.0,0.8927986]
[1727966235677,4.27533,2339.0,2338.9,0.8927986]
[1727966235891,4.27569,2338.8,2338.7,0.8927986]
[1727966236078,4.27642,2338.4,2338.3,0.8927986]
[1727966236252,8.55236,2338.6,2338.3,0.8927986]
[1727966236457,0.7848,2338.8,2338.2,0.8942605]
[1727966236659,0.788,2338.2,2338.0,0.8942605]
[1727966236854,0.788,2338.2,2337.8,0.8942605]
[1727966236855,5.06487,2338.2,2337.8,0.8942605]
[1727966237100,0.788,2338.2,2337.8,0.8942605]
[1727966237398,4.27652,2338.4,2338.0,4.27715]
[1727966237557,0.8241,2338.5,2337.8,0.8942605]
[1727966237757,0.7594,2338.8,2338.0,1.7094605]
[1727966237983,0.7594,2338.8,2338.4,4.27625]
[1727966238181,0.7594,2338.8,2338.2,0.8942605]
[1727966238182,5.03521,2338.8,2338.3,8.1707805]
[1727966238391,0.7594,2338.8,2338.4,4.27631]
[1727966238600,5.03527,2338.8,2338.4,0.8942605]
[1727966238860,4.27607,2338.6,2338.4,0.8942605]
[1727966239106,0.503527,2338.7,2338.2,3.1101914]
[1727966239107,4.27624,2338.5,2338.2,3.1101914]
[1727966239370,4.27642,2338.4,2338.3,0.89576312]
[1727966239620,0.503527,2338.7,2338.3,1.76948901]
[1727966239621,4.27617,2338.6,2338.3,1.76948901]
[1727966239849,4.27617,2338.6,2338.5,0.8956876]
[1727966240045,5.03513,2338.8,2338.4,0.8956876]
[1727966240254,4.27624,2338.5,2338.4,0.8956876]
[1727966240419,5.03502,2338.4,2338.3,0.89576824]
[1727966240747,5.03502,2338.4,2338.0,2.2384766]
[1727966240748,4.27679,2338.2,2338.0,0.89576824]
[1727966240932,4.27679,2338.2,2337.8,0.89576824]
[1727966241133,8.55374,2338.2,2337.7,5.17344824]
[1727966241335,4.27699,2338.1,2337.7,5.17344824]
[1727966241762,0.7586,2338.4,2337.8,0.89576824]
[1727966242056,9.32898,2338.5,2338.1,4.2769]
[1727966242240,0.7763,2338.5,2338.0,4.27704]
[1727966242555,5.05256,2338.5,2338.0,4.27704]
[1727966242756,0.7763,2338.5,2338.4,4.27642]
[1727966243052,4.27588,2338.7,2338.1,4.27687]
[1727966243282,4.27588,2338.7,2338.2,4.27669]
[1727966243447,0.7864,2338.8,2338.2,3.0]
[1727966243776,0.7864,2338.8,2338.5,4.27614]
[1727966244132,5.06211,2338.8,2338.4,4.27641]
[1727966244333,4.2759,2338.7,2338.2,7.27662]
[1727966244543,4.2759,2338.7,2338.3,3.0]
[1727966244751,8.55189,2338.7,2338.3,3.0]
[1727966245031,5.0621,2338.8,2338.3,7.27646]
[1727966245256,5.0621,2338.8,2338.4,4.27641]
[1727966245626,0.7864,2338.8,2338.4,4.27641]
[1727966245825,0.7864,2338.8,2338.5,4.27615]
[1727966246031,5.06225,2338.8,2338.3,7.27658]
[1727966246279,0.7864,2338.8,2338.4,4.27641]
[1727966246438,4.27463,2339.4,2338.4,4.27641]
[1727966246439,4.27504,2339.2,2338.8,4.27562]
[1727966246638,4.27504,2339.2,2338.8,8.55119]
[1727966246864,4.27479,2339.3,2338.9,4.27548]
[1727966247268,0.8043,2339.4,2339.1,4.27505]
[1727966247473,0.8043,2339.4,2339.2,4.27487]
[1727966247647,12.42225,2339.7,2339.3,4.27478]
[1727966247840,12.42225,2339.7,2339.2,4.27483]
[1727966247841,5.07225,2339.7,2339.2,4.27483]
[1727966248072,0.7981,2339.7,2339.3,4.27463]
[1727966248282,0.7981,2339.7,2339.5,4.27429]
[1727966248429,8.1635,2340.1,2339.4,4.27452]
[1727966248777,8.1635,2340.1,2339.0,4.27532]
[1727966248778,4.27375,2339.9,2339.2,3.0]
[1727966249074,12.43696,2340.1,2339.6,4.27423]
[1727966249372,4.27355,2340.0,2339.6,4.27423]
[1727966249696,5.08696,2340.1,2339.7,4.27404]
[1727966250180,0.8135,2340.1,2339.7,4.27396]
[1727966250337,0.8135,2340.1,2339.7,4.27395]
[1727966250536,0.8135,2340.1,2339.5,4.27431]
[1727966250737,4.27361,2340.0,2339.5,4.27431]
[1727966250961,4.2736,2340.0,2339.5,4.27431]
[1727966251280,0.8135,2340.1,2339.4,3.0]
[1727966251281,5.08693,2340.1,2339.4,3.0]
[1727966251437,4.27361,2340.0,2339.5,4.27436]
[1727966251837,0.8135,2340.1,2339.4,4.27447]
[1727966252037,0.8135,2340.1,2339.9,4.27359]
[1727966252261,0.7972,2340.4,2340.0,4.27341]
[1727966252460,0.7972,2340.4,2340.0,4.27339]
[1727966252636,0.7972,2340.4,2339.9,4.27367]
[1727966252852,4.27295,2340.3,2339.9,4.27367]
[1727966253290,0.7972,2340.4,2339.8,3.0]
[1727966253437,0.7972,2340.4,2339.3,0.89576824]
[1727966253438,0.7972,2340.4,2339.3,5.17041824]
[1727966253638,4.27378,2339.9,2339.3,4.27465]
[1727966253841,0.7925,2339.8,2339.4,4.27458]
[1727966254039,0.7925,2340.2,2339.5,4.27434]
[1727966254294,0.7925,2340.2,2339.2,0.7741]
[1727966254295,4.27387,2339.8,2339.4,4.27447]
[1727966254438,0.7942,2339.7,2338.9,0.8275]
[1727966254660,4.27462,2339.4,2338.9,4.27539]
[1727966254895,4.27426,2339.6,2339.1,4.27499]
[1727966255103,5.06835,2339.7,2339.1,4.27499]
[1727966255299,0.7942,2339.7,2339.3,4.27475]
[1727966255468,0.7942,2339.7,2339.1,4.27497]
[1727966255655,4.27452,2339.5,2338.9,4.2754]
[1727966255860,4.27461,2339.4,2338.9,4.2754]
[1727966256311,4.27479,2339.3,2338.9,4.2754]
[1727966256460,0.506872,2339.5,2339.0,4.27525]
[1727966256461,4.781432,2339.5,2339.0,4.27525]
[1727966256663,0.7942,2339.7,2339.1,4.27496]
[1727966256875,0.7942,2339.7,2339.0,4.2752]
[1727966257069,5.06826,2339.7,2339.2,4.27486]
[1727966257303,5.06826,2339.7,2339.2,8.54973]
[1727966257678,2.463428,2339.7,2339.1,3.0]
[1727966257877,4.27431,2339.6,2339.2,4.27494]
[1727966258081,4.27431,2339.6,2339.1,3.0]
[1727966258286,0.7942,2339.7,2338.9,4.27538]
[1727966258287,4.27449,2339.5,2339.0,4.27524]
[1727966258489,4.781359,2339.5,2339.1,4.27507]
[1727966258689,4.27449,2339.5,2339.1,4.27507]
[1727966259583,4.27462,2339.4,2339.0,4.27524]
[1727966259786,4.27449,2339.5,2339.0,4.27519]
[1727966259787,4.27442,2339.5,2339.0,4.27519]
[1727966259991,0.7583,2339.2,2338.7,4.27584]
[1727966260208,4.27522,2339.1,2338.7,4.27584]
[1727966260371,4.27534,2339.0,2338.6,4.27596]
[1727966260573,4.27517,2339.1,2338.3,0.8262]
[1727966260824,4.27535,2339.0,2338.4,4.27639]
[1727966260975,4.27535,2339.0,2338.5,4.27615]
[1727966261316,0.7938,2338.9,2338.3,4.27658]
[1727966261515,4.27619,2338.6,2338.1,4.27682]
[1727966261729,4.2758,2338.8,2338.4,4.27638]
[1727966262077,5.06947,2338.9,2338.7,4.27579]
[1727966262078,0.7938,2338.9,2338.7,4.27579]
[1727966262278,0.8197,2339.2,2339.0,4.27526]
[1727966262478,0.8197,2339.2,2338.8,4.27552]
[1727966262719,0.8197,2339.2,2339.0,4.2752]
[1727966263277,4.27486,2339.3,2338.9,4.27546]
[1727966263476,4.27486,2339.3,2338.4,8.1019]
[1727966263477,4.27485,2339.3,2338.7,4.27578]
[1727966263681,4.27461,2339.4,2339.0,4.27524]
[1727966263925,0.503601,2339.4,2338.4,3.8256]
[1727966264110,4.27534,2339.0,2338.6,4.27598]
[1727966264288,4.27534,2339.0,2338.5,7.27615]
[1727966264475,0.8071,2338.9,2338.5,7.27622]
[1727966264691,0.8071,2338.9,2338.6,4.27605]
[1727966265382,5.08272,2338.9,2338.5,3.0]
[1727966265596,0.8071,2338.9,2338.7,4.27571]
[1727966265895,4.27493,2339.3,2338.9,4.27545]
[1727966265896,5.07763,2339.3,2338.9,4.27545]
[1727966266081,0.8027,2339.3,2339.0,4.27519]
[1727966266278,0.8027,2339.3,2339.1,4.27513]
[1727966266479,0.8027,2339.3,2338.6,0.8063]
[1727966266677,4.27525,2339.1,2338.7,7.27576]
[1727966267698,4.275,2339.2,2338.8,4.27567]
[1727966267898,4.27516,2339.1,2338.6,3.0]
[1727966268104,4.27534,2339.0,2338.6,7.27602]
[1727966268304,4.27562,2338.9,2338.6,3.0]
[1727966268497,4.27562,2338.9,2338.5,4.27621]
[1727966268707,4.27535,2339.0,2338.5,4.27614]
[1727966269084,4.27535,2339.0,2338.6,4.27605]
[1727966269580,4.27526,2339.1,2338.6,4.27596]
[1727966269756,4.27547,2339.0,2338.5,4.27617]
[1727966270027,5.08277,2338.8,2338.5,3.0]
[1727966270411,0.807,2338.8,2338.5,7.27619]
[1727966270615,5.08271,2338.8,2338.5,3.0]
[1727966271302,0.807,2338.8,2338.5,7.27623]
[1727966271536,5.08271,2338.8,2338.4,4.27633]
[1727966271994,0.807,2338.8,2338.2,3.0]
[1727966272190,0.807,2338.8,2338.3,4.27652]
[1727966272191,4.27588,2338.7,2338.3,4.27652]
[1727966272630,0.807,2338.8,2337.7,5.93533824]
[1727966272942,4.27653,2338.4,2338.0,4.2771]
[1727966273151,4.27723,2338.0,2337.6,4.27788]
[1727966273319,4.27724,2338.0,2337.6,4.2778]
[1727966273626,4.27711,2338.1,2337.7,4.27768]
[1727966273797,4.27716,2338.0,2337.5,4.27799]
[1727966273998,4.27735,2337.9,2337.4,4.27814]
[1727966274212,4.27791,2337.6,2337.2,4.27854]
[1727966274423,0.7643,2337.8,2336.8,4.27919]
[1727966274621,4.27777,2337.7,2337.2,4.27858]
[1727966274819,4.27777,2337.7,2337.2,4.27854]
[1727966274988,4.27789,2337.6,2337.2,4.27854]
[1727966275188,4.27789,2337.6,2337.0,4.27883]
[1727966275402,4.27782,2337.7,2337.2,4.2785]
[1727966275802,4.27782,2337.7,2336.8,7.27933]
[1727966275803,0.7643,2337.8,2337.3,4.27841]
[1727966276038,0.7643,2337.8,2337.4,4.27809]
[1727966276243,5.04183,2337.8,2337.4,4.27809]
[1727966276528,4.27726,2338.0,2337.3,4.27841]
[1727966276529,5.10208,2338.1,2337.3,3.0]
[1727966276743,0.8251,2338.1,2337.3,3.0]
[1727966276891,5.10165,2338.4,2338.0,4.27715]
[1727966277591,5.10165,2338.4,2338.1,4.27692]
[1727966277592,0.8251,2338.4,2338.1,4.27692]
[1727966277795,0.8251,2338.4,2337.8,0.7586]
[1727966277796,0.8251,2338.4,2338.2,4.2767]
[1727966277996,8.55168,2338.8,2338.2,4.2767]
[1727966277997,4.27597,2338.7,2338.2,4.2767]
[1727966278197,0.8074,2338.8,2338.4,4.27639]
[1727966278435,5.0832,2338.8,2338.3,4.2766]
[1727966278636,4.27615,2338.6,2338.0,3.0]
[1727966278808,4.27626,2338.5,2338.0,3.0]
[1727966279009,4.27692,2338.2,2337.8,3.0]
[1727966279245,0.7898,2338.3,2337.4,0.7788]
[1727966279397,0.7898,2338.6,2338.3,4.2765]
[1727966279599,0.7898,2338.6,2338.2,4.27679]
[1727966279843,4.27685,2338.2,2337.6,4.27786]
[1727966279999,4.27674,2338.3,2337.4,0.7551]
[1727966280202,0.7647,2338.4,2337.9,4.27733]
[1727966280404,0.7647,2338.4,2338.1,4.27682]
[1727966280634,0.75,2338.7,2338.4,4.27634]
[1727966280931,0.75,2338.7,2338.3,4.27651]
[1727966281114,5.02595,2338.7,2338.3,4.27651]
[1727966281318,5.02595,2338.7,2338.1,4.27682]
[1727966281319,1.252595,2338.7,2338.1,4.27682]
[1727966281522,7.35,2339.0,2337.8,3.0]
[1727966281523,5.08708,2338.1,2337.8,3.0]
[1727966281825,4.27784,2337.7,2337.2,4.27854]
[1727966282035,4.27809,2337.5,2337.0,4.27888]
[1727966282228,4.27803,2337.6,2337.0,4.27888]
[1727966282229,5.08803,2337.6,2337.0,4.27888]
[1727966282544,0.81,2337.6,2336.9,0.7625]
[1727966282759,4.27833,2337.4,2336.8,4.27924]
[1727966282902,5.08799,2337.6,2337.1,4.27869]
[1727966283099,5.08799,2337.6,2337.0,4.27898]
[1727966283100,4.27826,2337.4,2337.0,4.27898]
[1727966283546,4.27825,2337.4,2336.9,4.27916]
[1727966283754,4.27825,2337.4,2336.8,4.27925]
[1727966284047,4.27845,2337.3,2336.8,8.5585]
[1727966284201,4.27844,2337.3,2336.6,4.27959]
[1727966284403,4.27912,2337.0,2336.4,8.55993]
[1727966284685,4.27885,2337.1,2336.4,8.55993]
[1727966284686,8.55781,2337.1,2336.4,4.27996]
[1727966284899,4.2789,2337.1,2336.4,4.27996]
[1727966285040,4.2789,2337.1,2336.5,4.27988]
[1727966285041,4.27908,2337.0,2336.5,4.27988]
[1727966285241,4.2789,2337.1,2336.5,4.27988]
[1727966285477,4.2789,2337.1,2336.6,4.27958]
[1727966285697,0.7832,2337.2,2336.2,5.05061]
[1727966285902,0.7832,2337.2,2336.3,4.28019]
[1727966285903,5.06186,2337.2,2336.3,4.28019]
[1727966286055,4.27945,2336.8,2336.3,8.56028]
[1727966286258,4.27945,2336.8,2336.3,4.28009]
[1727966286455,0.7832,2337.2,2336.9,4.27909]
[1727966286781,0.7734,2337.5,2337.2,4.27861]
[1727966286978,0.7734,2337.5,2336.9,4.27909]
[1727966287201,0.7734,2337.5,2337.2,4.27844]
[1727966287354,0.7734,2337.5,2337.1,4.27876]
[1727966287550,0.7789,2337.9,2337.1,4.27869]
[1727966287749,0.7789,2337.9,2337.6,4.27781]
[1727966287987,11.62574,2338.8,2337.6,4.27781]
[1727966287988,0.7789,2338.3,2337.6,4.27789]
[1727966288187,6.94473928,2339.7,2337.9,4.27721]
[1727966288188,0.7789,2338.6,2337.9,4.27721]
[1727966288403,5.05498,2338.6,2338.1,4.27695]
[1727966288609,4.27625,2338.5,2338.0,4.27712]
[1727966288917,0.7789,2338.6,2338.0,4.27712]
[1727966288918,0.7789,2338.6,2338.0,3.0]
[1727966289201,4.27634,2338.5,2338.0,3.0]
[1727966289374,4.27654,2338.4,2337.9,3.0]
[1727966289559,4.27654,2338.4,2337.7,0.787]
[1727966289759,4.27653,2338.4,2337.9,4.27717]
[1727966289965,4.27653,2338.4,2338.0,7.27712]
[1727966290205,4.27652,2338.4,2338.0,3.0]
[1727966290376,4.27688,2338.2,2337.7,4.27757]
[1727966290580,3.0,2338.9,2337.8,3.0]
[1727966290799,4.27634,2338.5,2337.8,4.27745]
[1727966291116,4.27634,2338.5,2337.7,3.0]
[1727966291117,0.7924,2338.4,2337.7,7.27756]
[1727966291400,0.7719,2338.0,2337.6,4.2778]
[1727966291602,0.7719,2338.0,2337.6,4.27787]
[1727966291603,5.04906,2338.0,2337.6,4.27787]
[1727966291818,0.7719,2338.0,2337.6,4.27775]
[1727966291964,0.7719,2338.3,2337.9,4.2772]
[1727966292170,0.7719,2338.3,2338.0,4.27705]
[1727966292605,0.7719,2338.3,2338.0,4.27698]
[1727966292825,0.7616,2338.6,2337.7,0.7731]
[1727966292972,0.7616,2338.6,2338.2,4.27667]
[1727966293915,0.8058,2338.9,2338.5,4.27624]
[1727966294084,0.8058,2338.9,2338.5,4.27615]
[1727966294474,5.0814,2338.9,2338.4,4.2764]
[1727966294670,0.8058,2338.9,2338.5,4.2762]
[1727966295174,0.8058,2338.9,2338.7,4.27587]
[1727966295936,11.62433,2339.6,2338.8,4.27568]
[1727966295937,5.05588,2339.2,2338.8,4.27568]
[1727966296139,5.05547,2339.5,2339.0,4.27516]
[1727966296445,0.7809,2339.5,2339.0,4.27516]
[1727966296649,0.7809,2339.5,2339.1,4.275]
[1727966296937,5.05533,2339.5,2339.1,4.275]
[1727966297120,0.7809,2339.5,2339.1,8.55006]
[1727966297297,0.7809,2339.5,2339.0,3.0]
[1727966297491,5.05541,2339.5,2339.0,7.27525]
[1727966297817,0.7809,2339.5,2339.2,4.27496]
[1727966298005,4.27402,2339.8,2339.1,4.27513]
[1727966298006,4.27432,2339.6,2339.1,4.27513]
[1727966298320,4.27406,2339.7,2339.2,4.27486]
[1727966298698,4.27427,2339.6,2339.1,4.27513]
[1727966298899,4.27406,2339.7,2339.2,4.27483]
[1727966299128,4.27427,2339.6,2339.2,4.27483]
[1727966299296,4.27406,2339.7,2339.2,4.27483]
[1727966300132,8.54822,2339.7,2339.2,4.27483]
[1727966300336,0.8017,2339.8,2339.4,4.27459]
[1727966300539,8.165,2340.2,2339.7,4.27403]
[1727966300724,0.815,2340.2,2339.9,4.2735]
[1727966300907,0.815,2340.2,2339.5,8.02747]
[1727966300908,7.35,2340.6,2339.8,3.0]
[1727966301111,7.35,2340.6,2340.4,4.27275]
[1727966301297,4.27205,2340.8,2340.3,4.27293]
[1727966301697,9.35864,2341.0,2340.4,4.27276]
[1727966301939,7.35,2341.5,2340.1,0.7531]
[1727966301940,0.8101,2341.3,2341.0,4.27159]
[1727966302140,0.8101,2341.3,2340.9,4.27186]
[1727966302439,0.8101,2341.3,2340.6,0.8181]
[1727966302440,4.27162,2341.1,2340.6,0.8181]
[1727966302625,1.318205,2341.3,2340.4,3.0]
[1727966302795,0.8101,2341.3,2340.9,4.27176]
[1727966303308,0.8101,2341.3,2340.7,8.05771]
[1727966303309,4.27133,2341.2,2340.7,7.27211]
[1727966303527,0.8101,2341.3,2340.7,7.27211]
[1727966303733,0.8101,2341.3,2340.5,0.7856]
[1727966303734,0.508117,2341.3,2340.5,5.05805]
[1727966304041,4.27125,2341.3,2340.8,4.27195]
[1727966304232,4.27143,2341.2,2340.7,4.27207]
[1727966304427,4.27143,2341.2,2340.5,5.05806]
[1727966304428,4.27143,2341.2,2340.6,7.27238]
[1727966304685,4.27143,2341.2,2340.4,3.0]
[1727966304686,0.7695,2341.0,2340.4,3.0]
[1727966304861,0.7695,2341.0,2340.2,0.7543]
[1727966304862,0.7695,2341.0,2340.2,3.7543]
[1727966305067,0.7695,2341.0,2340.5,4.27257]
[1727966305268,0.7695,2341.0,2340.6,3.0]
[1727966305450,0.7695,2341.0,2340.4,7.27273]
[1727966305451,5.04127,2341.0,2340.4,7.27273]
[1727966305635,9.31304,2341.0,2340.4,7.27273]
[1727966305841,4.27186,2340.9,2340.4,7.27273]
[1727966306362,4.27207,2340.8,2340.4,3.0]
[1727966306964,0.77958977,2340.8,2340.2,7.27312]
[1727966307266,4.27242,2340.6,2340.1,7.27317]
[1727966307622,0.7695,2341.0,2340.6,4.27239]
[1727966307965,0.7695,2341.0,2340.2,3.0]
[1727966308169,5.05894,2341.3,2340.3,0.7959]
[1727966308321,4.27133,2341.2,2340.7,4.2721]
[1727966308526,0.7877,2341.3,2340.9,4.27184]
[1727966308871,5.05899,2341.3,2340.7,8.5443]
[1727966309072,4.27152,2341.1,2340.7,4.27212]
[1727966309260,4.27152,2341.1,2340.6,4.27238]
[1727966309261,4.2715,2341.1,2340.6,4.27238]
[1727966309421,4.27144,2341.2,2340.7,7.2722]
[1727966309618,8.5429,2341.2,2340.7,4.2722]
[1727966310063,4.27162,2341.1,2340.3,0.7959]
[1727966310369,4.27169,2341.0,2340.5,4.27247]
[1727966310871,4.27169,2341.0,2340.1,4.27326]
[1727966310872,0.767,2341.0,2340.4,3.0]
[1727966311113,5.03871,2341.0,2340.1,4.27321]
[1727966311261,4.27288,2340.4,2339.9,4.27356]
[1727966311619,4.27307,2340.3,2339.7,5.02442]
[1727966311764,0.767,2340.5,2339.7,0.7505]
[1727966311967,0.767,2340.5,2340.1,4.27316]
[1727966312170,0.767,2340.5,2339.7,4.27389]
[1727966312171,1.270935,2340.5,2339.7,4.27389]
[1727966312375,4.27313,2340.2,2339.7,8.54785]
[1727966312588,4.27313,2340.2,2339.7,4.27405]
[1727966312799,4.2735,2340.0,2339.6,4.27422]
[1727966313305,4.2735,2340.0,2339.5,4.2743]
[1727966313538,0.767,2340.5,2339.2,4.27495]
[1727966313539,0.757,2339.9,2339.2,4.27495]
[1727966313664,0.757,2340.2,2339.1,0.53318154]
[1727966313862,4.27256,2340.6,2340.0,4.27348]
[1727966313863,4.2727,2340.5,2340.0,4.27348]
[1727966314062,5.02946,2340.6,2339.6,4.27419]
[1727966314063,0.757,2340.6,2340.1,4.27319]
[1727966314258,0.757,2340.6,2340.0,4.27334]
[1727966314259,5.02953,2340.6,2340.0,4.27334]
[1727966314501,4.27262,2340.5,2340.0,4.27334]
[1727966314974,0.757,2340.6,2340.2,4.27313]
[1727966315179,0.757,2340.6,2340.4,4.27275]
[1727966315375,4.2717,2341.0,2340.5,4.27243]
[1727966315576,4.2717,2341.0,2340.4,4.27264]
[1727966315798,4.2717,2341.0,2340.5,4.27251]
[1727966315992,4.27188,2340.9,2340.5,4.27251]
[1727966316606,4.2717,2341.0,2340.1,7.27328]
[1727966316607,4.27205,2340.8,2340.2,4.27305]
[1727966316765,4.27205,2340.8,2340.1,4.27327]
[1727966316766,4.27259,2340.5,2340.1,4.27327]
[1727966316961,4.27259,2340.5,2339.9,4.27357]
[1727966317265,0.8095,2340.6,2340.2,4.27312]
[1727966317266,5.08193,2340.6,2340.2,4.27312]
[1727966317569,4.27267,2340.5,2340.0,4.27341]
[1727966317885,4.27267,2340.5,2339.7,4.27404]
[1727966317886,0.935452,2340.5,2339.7,4.27404]
[1727966318064,0.935452,2340.5,2339.4,0.7678]
[1727966318065,5.03553,2340.1,2339.6,8.54828]
[1727966318262,0.7621,2340.6,2339.7,4.27394]
[1727966318488,0.7621,2340.6,2339.4,0.7678]
[1727966318489,5.03468,2340.6,2339.4,0.7678]
[1727966318686,5.03468,2340.6,2340.3,4.27286]
[1727966318687,0.7621,2340.6,2340.3,4.27286]
[1727966318888,1.69274,2340.6,2340.0,4.27338]
[1727966319125,4.2727,2340.5,2340.1,4.27328]
[1727966319421,4.2727,2340.5,2340.0,4.27338]
[1727966319590,0.7621,2340.6,2339.8,4.27373]
[1727966319786,5.05286,2340.2,2339.7,4.27395]
[1727966320025,0.7797,2340.2,2339.8,4.27383]
[1727966320225,0.793,2340.5,2339.4,4.27459]
[1727966320427,0.793,2340.5,2340.1,4.27321]
[1727966320715,4.27287,2340.4,2339.9,4.27357]
[1727966321081,5.06567,2340.5,2340.0,4.27349]
[1727966321307,9.33842,2340.5,2340.0,4.27349]
[1727966321474,5.06567,2340.5,2340.0,4.27349]
[1727966322520,0.753,2340.8,2340.3,4.27287]
[1727966322828,0.753,2340.8,2340.4,4.27276]
[1727966323113,4.27164,2341.1,2340.7,4.27222]
[1727966323114,0.753,2341.1,2340.7,4.27222]
[1727966323533,0.753,2341.1,2340.6,4.2724]
[1727966323902,5.02459,2341.1,2340.6,4.2724]
[1727966324107,4.27176,2341.0,2340.6,4.2724]
[1727966324435,4.27223,2340.7,2340.1,4.27319]
[1727966324606,4.27223,2340.7,2340.0,0.798]
[1727966324607,0.7754,2340.6,2340.3,4.27285]
[1727966324936,4.27259,2340.5,2340.0,7.27335]
[1727966325085,0.7754,2340.6,2340.2,4.27302]
[1727966325727,4.27198,2340.9,2340.2,4.27299]
[1727966325931,4.27193,2340.9,2340.4,4.27265]